[Event "CCT Airthings Masters Play-In 2023"]
[Site "Online"]
[Date "2023.02.03"]
[Round "4"]
[White "Cardoso Cardoso, Jose Gabriel"]
[Black "GukeshDommaraju"]
[Result "0-1"]
[ECO "E32"]
[WhiteElo "2498"]
[BlackElo "2625"]
[Annotator "TA"]
[PlyCount "70"]
[EventDate "2023.02.03"]
[EventType "swiss"]
[EventCountry "NET"]
[SourceTitle "playchess.com"]
[Source "ChessBase"]
[SourceQuality "1"]
[TimeControl "600+2"]

{[%evp 24,70,33,29,48,47,84,-14,0,-30,59,24,16,16,12,0,-17,-110,-117,-100,-51,-50,0,-89,-88,-147,-146,-956,-960,-957,-912,-910,-867,-849,-849,-857,-820,-807,-802,-818,-810,-781,-784,-769,-759,-738,-737,-1135,-1124]} 1. d4 {[%emt 0:00:10]} Nf6 {[%emt 0:00:05]} 2. c4 {[%emt 0:00:04]} e6 {[%emt 0:00:01]} 3. Nc3 {[%emt 0:00:02]} Bb4 {[%emt 0:00:02]} 4. Qc2 {[%emt 0:00:01]} O-O {[%emt 0:00:05]} 5. a3 {[%emt 0:00:02]} Bxc3+ {[%emt 0:00:01]} 6. Qxc3 {[%emt 0:00:00]} b6 {[%emt 0:00:11]} 7. e3 {[%emt 0:00:08]} Bb7 {[%emt 0:00:02]} 8. Nf3 {[%emt 0:00:01]} d6 {[%emt 0:00:03]} 9. b4 {[%emt 0:00:03]} Nbd7 {[%emt 0:00:03]} 10. Bb2 {[%emt 0:00:09]} a5 {[%emt 0:00:02]} 11. Be2 {[%emt 0:00:17]} Ne4 {[%emt 0:00:04]} 12. Qc2 {[%emt 0:00:08]} f5 {[%emt 0:00:01]} 13. O-O {[%emt 0:00:06]} Rf6 $5 {[%emt 0:00:13][%mdl 4] [#] Leaves trodden paths. E32: Nimzo-Indian: Classical (4 Qc2): 4...0-0.} 14. d5 $1 {[%emt 0:00:32]} Rg6 {[%emt 0:00:34] [#]} (14... Rh6 15. g3) 15. dxe6 {[%emt 0:01:01]} (15. Nd4 $1 $16 {[%cal Rd4e6]}) 15... Nf8 $11 {[%emt 0:00:02] The position is equal.} 16. c5 {[%emt 0:01:47] [#]} dxc5 $146 {[%emt 0:00:05]} (16... bxc5 $11 17. bxc5 Nxc5) ({Predecessor:} 16... bxc5 17. bxc5 Nxc5 18. Qxf5 Nfxe6 19. Kh1 Be4 20. Qh5 Qe7 21. Bc4 Rf8 22. Ne1 Rf5 {0-1 Bubeeva,L (1810)-Afanasieva,A (1997) Moscow op (Women) 17th 2021 (8)}) 17. bxc5 {[%emt 0:00:22]} (17. Rfd1 $5 {[%cal Rd1d8]} Nd6 18. bxc5 bxc5 19. Qxc5 $16) 17... Nxc5 {[%emt 0:00:16]} 18. Qxf5 {[%emt 0:00:04] Black must now prevent Qf7+.} Nfxe6 {[%emt 0:00:03]} 19. Rad1 {[%emt 0:00:14]} Qe7 {[%emt 0:00:14]} 20. Kh1 {[%emt 0:01:05]} ({Avoid the trap} 20. Bc4 $2 Rf8 $19) (20. h4 $11 {keeps the balance.}) 20... Rf8 $17 {[%emt 0:00:29]} 21. Qe5 {[%emt 0:00:03]} Qf7 {[%emt 0:02:52]} ({Black should play} 21... Qe8 $17 22. Qh5 Qa4) 22. Qh5 {[%emt 0:00:32]} Ne4 {[%emt 0:00:38]} (22... Qe8 $1 $15) 23. Be5 {[%emt 0:00:40] [#]} (23. Bc4 $11) 23... Qe7 $1 {[%emt 0:01:03] And now ...Rh6 would win.} 24. Bg3 {[%emt 0:00:20]} (24. Bc4 $142) 24... Nc3 {[%emt 0:00:18] Black is more active. Excellent horsemanship.} ({Not} 24... Qxa3 25. Bc4 $11) 25. Nh4 $2 {[%emt 0:00:46][%mdl 8192] White does not recover from this.} (25. Bc4 $17 Nxd1 26. Rxd1) 25... Rg5 $19 {[%emt 0:00:06] Black is clearly winning.} 26. Rc1 {[%emt 0:00:35]} Rxh5 {[%emt 0:00:04]} 27. Bxh5 {[%emt 0:00:01]} Ne4 {[%emt 0:00:05] ...g5 would be deadly.} 28. Be2 {[%emt 0:00:06]} N6c5 {[%emt 0:00:09][%cal Be6c5,Bc5e4,Be4g3][%mdl 32]} 29. Nf3 {[%emt 0:00:07]} Nxg3+ {[%emt 0:00:09]} 30. hxg3 {[%emt 0:00:01]} Ne4 {[%emt 0:00:00]} 31. Kg1 {[%emt 0:00:05] [#]} Nxg3 $1 {[%emt 0:00:11]} 32. Bc4+ {[%emt 0:00:01]} Kh8 {[%emt 0:00:00]} 33. fxg3 {[%emt 0:00:08]} Qxe3+ {[%emt 0:00:02]} 34. Kh2 {[%emt 0:00:01]} Bxf3 {[%emt 0:00:01]} 35. Rce1 {[%emt 0:00:26]} Qc5 {[%emt 0:00:02] Weighted Error Value: White=0.63/Black=0.14 (very precise)} 0-1

[Event "CCT Airthings Masters Play-In 2023"]
[Site "Online"]
[Date "2023.02.03"]
[Round "4"]
[White "Anonymous"]
[Black "LastGladiator1"]
[Result "0-1"]
[ECO "B45"]
[WhiteElo "2471"]
[BlackElo "2599"]
[Annotator "TA"]
[PlyCount "82"]
[EventDate "2023.02.03"]
[EventType "swiss"]
[EventCountry "NET"]
[SourceTitle "playchess.com"]
[Source "ChessBase"]
[SourceQuality "1"]
[TimeControl "600+2"]

{[%evp 15,82,12,27,0,0,-20,-27,-29,-15,-60,-59,-55,-48,-101,-106,-102,-97,-96,-70,-135,-133,-122,-137,-180,-172,-168,-147,-147,-144,-165,-175,-154,-154,-213,-195,-186,-192,-189,-204,-218,-213,-216,-203,-235,-205,-242,-234,-352,-232,-377,-270,-437,-337,-355,-345,-355,-319,-350,-345,-471,-466,-821,-563,-1483,-1395,-29997,-29998,-29998,-29999]} 1. e4 {[%emt 0:00:03]} c5 {[%emt 0:00:09]} 2. Nf3 {[%emt 0:00:01]} e6 {[%emt 0:00:04]} 3. d4 {[%emt 0:00:02]} cxd4 {[%emt 0:00:00]} 4. Nxd4 {[%emt 0:00:00]} Nf6 {[%emt 0:00:03]} 5. Nc3 {[%emt 0:00:01]} Nc6 {[%emt 0:00:02]} 6. Nxc6 {[%emt 0:00:01]} bxc6 {[%emt 0:00:01]} 7. e5 {[%emt 0:00:01]} Nd5 {[%emt 0:00:00]} 8. Ne4 {[%emt 0:00:01]} Bb7 {[%emt 0:00:01]} (8... Qc7 $5 {[%cal Rc7e5]}) 9. c4 {[%emt 0:01:04] B45: Sicilian Four Knights.} Nb4 {[%emt 0:00:01]} 10. Be2 {[%emt 0:00:25]} (10. c5 $5 {[%cal Rd1b3]}) 10... Qa5 {[%emt 0:00:12][%csl LRa2,LRe5] Hoping for ...Nc2+.} 11. O-O {[%emt 0:00:36] aiming for Nd6+. Black has an edge.} ({Don't play} 11. Nd6+ Bxd6 12. Qxd6 Nd3+ 13. Kd1 Nxf2+ 14. Kc2 Nxh1 $17) 11... Qxe5 {[%emt 0:00:02] [#]} 12. Bf3 $146 {[%emt 0:00:10]} ({Predecessor:} 12. Ng5 Be7 13. Nf3 Qc7 14. a3 Na6 15. b4 Bf6 16. Ra2 c5 17. Bb2 Bxb2 18. Rxb2 {1-0 Ivanov,A (2335)-Kaiyrbekov,R (2342) Zudov Memorial-B 4th 2008 (2)}) 12... d5 {[%emt 0:00:35]} 13. cxd5 {[%emt 0:00:03]} cxd5 {[%emt 0:00:00]} ({But not} 13... exd5 14. Nc5 O-O-O 15. Re1 $16) 14. Nc3 {[%emt 0:00:20]} (14. Ng3 $15) 14... Be7 $17 {[%emt 0:00:30] Black is more active.} 15. a3 {[%emt 0:01:16]} Nc6 {[%emt 0:00:08]} 16. Re1 {[%emt 0:00:34]} Qd6 {[%emt 0:00:37]} 17. Nb5 {[%emt 0:00:13]} (17. b4 $15) 17... Qd7 {[%emt 0:00:05]} 18. b4 {[%emt 0:01:46]} O-O {[%emt 0:01:11]} 19. Nc3 {[%emt 0:00:31]} Bf6 {[%emt 0:00:04]} 20. Bb2 {[%emt 0:00:02]} Nd4 {[%emt 0:00:03]} 21. Bg4 {[%emt 0:00:11]} Rac8 {[%emt 0:00:15]} 22. Rc1 {[%emt 0:00:42]} Bc6 {[%emt 0:00:55]} 23. a4 {[%emt 0:00:10]} Bb7 {[%emt 0:00:05][%cal Of6g5]} 24. Na2 {[%emt 0:00:20] [#]} (24. h3 $17) 24... Nf3+ $1 {[%emt 0:00:10][%mdl 576] Discovered Attack} 25. Bxf3 {[%emt 0:00:11] And now Bxf6 would win.} Bxb2 {[%emt 0:00:00]} 26. Rxc8 {[%emt 0:00:06]} Rxc8 {[%emt 0:00:00][%cal Bf8c8,Bc8c5,Bc5c4][%mdl 32]} 27. Qb3 {[%emt 0:00:04]} Bf6 {[%emt 0:00:04]} 28. b5 {[%emt 0:00:01]} Rc5 {[%emt 0:00:19]} 29. g3 {[%emt 0:00:02]} Qc7 {[%emt 0:00:06]} 30. Kg2 {[%emt 0:00:05]} g6 {[%emt 0:00:03]} 31. Re2 {[%emt 0:00:16]} (31. Rb1 $142) 31... h5 {[%emt 0:00:03] White must now prevent ...e5.} 32. h4 {[%emt 0:00:03]} (32. Nb4 $142) 32... Rc4 {[%emt 0:00:06]} 33. Rd2 $2 {[%emt 0:00:28] White is weak on the dark squares} (33. Nb4 {was the only chance.}) 33... a5 {[%emt 0:00:09]} 34. bxa6 {[%emt 0:00:12]} Bxa6 {[%emt 0:00:03]} 35. Be2 {[%emt 0:00:07] [#]} Bb7 $1 {[%emt 0:00:08][%cal Ob7c6]} 36. Kg1 {[%emt 0:00:20]} (36. Kf1 Rc5) 36... Rc5 {[%emt 0:00:17]} 37. Bd3 {[%emt 0:00:06]} d4 {[%emt 0:00:08] Threatens to win with ...Qc6.} 38. Nb4 {[%emt 0:00:10] Dodges Qc6} (38. Rb2 $142 Bd5 39. Qb8+ Qxb8 40. Rxb8+ Kg7 41. Rb2) 38... Rc1+ {[%emt 0:00:12]} 39. Rd1 {[%emt 0:00:02]} Qc3 {[%emt 0:00:05]} 40. Bc2 {[%emt 0:00:09]} Rxd1+ {[%emt 0:00:01][%mdl 64] Remove Defender} 41. Bxd1 {[%emt 0:00:01]} Qe1+ {[%emt 0:00:01] White got outplayed after the opening.   Weighted Error Value: White=0.65/Black=0.27 (precise)} 0-1

[Event "CCT Airthings Masters Play-In 2023"]
[Site "Online"]
[Date "2023.02.03"]
[Round "4"]
[White "Sankalp_Gupta"]
[Black "Sam_ChessMood"]
[Result "0-1"]
[ECO "D00"]
[WhiteElo "2457"]
[BlackElo "2590"]
[Annotator "TA"]
[PlyCount "44"]
[EventDate "2023.02.03"]
[EventType "swiss"]
[EventCountry "NET"]
[SourceTitle "playchess.com"]
[Source "ChessBase"]
[SourceQuality "1"]
[TimeControl "600+2"]

{[%evp 9,44,0,0,0,0,0,0,0,0,-62,-56,-74,-59,-121,-129,-98,-73,-83,-72,-49,-95,-81,0,0,0,0,0,-95,-93,-88,-43,-1202,-1197,-1197,-1175,-6329,-5822]} 1. d4 {[%emt 0:00:59]} Nf6 {[%emt 0:00:05]} 2. Nc3 {[%emt 0:00:01]} d5 {[%emt 0:00:02]} 3. Bf4 {[%emt 0:00:03]} c5 {[%emt 0:00:05]} 4. e4 {[%emt 0:00:07]} Nxe4 {[%emt 0:00:07]} 5. Nxe4 {[%emt 0:00:24]} dxe4 {[%emt 0:00:00]} 6. dxc5 {[%emt 0:00:02] D00: 1 d4 d5: Unusual lines.} Nd7 $5 {[%emt 0:00:01][%mdl 4] Leaves trodden paths.} 7. b4 {[%emt 0:00:14]} e5 {[%emt 0:00:55] Wards off Qd4} 8. Be3 {[%emt 0:00:03] The position is equal.} Be7 {[%emt 0:00:08] [#]} 9. Qd5 $146 {[%emt 0:00:23]} (9. Bc4 $11) ({Predecessor:} 9. Bc4 O-O 10. Ne2 Kh8 11. O-O f5 12. Nc3 a5 13. a3 f4 14. Bd2 Nf6 15. Be1 axb4 16. axb4 Rxa1 17. Qxa1 f3 18. g3 Qd7 {0-1 Wall,T (2290)-Willow,J (2395) Newcastle EJCOA 4th 2022 (3)}) 9... O-O {[%emt 0:00:19]} 10. Bc4 {[%emt 0:00:28]} Qc7 {[%emt 0:00:40] Threatens to win with ...a5.} (10... a5 {is more complex.} 11. c3 Nf6 12. Qxe5 Ng4) 11. Qxe4 {[%emt 0:00:10]} ({White should play} 11. Ne2 $1 $15) 11... Nf6 $17 {[%emt 0:00:24]} 12. Qf3 {[%emt 0:00:01]} a5 {[%emt 0:00:47]} 13. c3 {[%emt 0:00:06]} axb4 {[%emt 0:00:24]} (13... Bg4 $6 14. Qg3 $11) 14. cxb4 {[%emt 0:00:00]} Ra4 {[%emt 0:00:01]} 15. a3 {[%emt 0:00:13] [#]} Bg4 {[%emt 0:00:06]} (15... b6 $1 $17 {[%cal Rb6c5]} 16. Qd1 (16. cxb6 $2 {is the wrong capture.} Bxb4+ {[%mdl 64] Pin, Double Attack} 17. Kf1 Qxc4+ $19) 16... Ra8) 16. Qg3 $11 {[%emt 0:00:04]} Rfa8 {[%emt 0:00:02] aiming for ...Rxb4.} 17. Rc1 {[%emt 0:00:51]} Rxa3 {[%emt 0:01:05][%cal Ob7b5]} 18. h3 {[%emt 0:00:08]} (18. Nf3 $11) 18... Bh5 $36 {[%emt 0:00:35][%mdl 2048] White must now prevent ...Ne4. Black is really pushing.} 19. Nf3 {[%emt 0:00:05]} Ne4 {[%emt 0:00:11]} ({But not} 19... Bxf3 $6 20. Qxf3 R8a4 21. Qd1 $15) 20. Qxe5 {[%emt 0:00:41][%mdl 8192] [#]} (20. Qh2 $15) 20... Rxe3+ $1 $19 {[%emt 0:00:14][%mdl 512] Black is clearly winning.} 21. fxe3 {[%emt 0:00:03] [#]} Bh4+ $1 {[%emt 0:00:04][%mdl 576] Deflection} 22. Kf1 {[%emt 0:00:21] [#]} (22. Nxh4 Qxe5) 22... Nd2+ $1 {[%emt 0:00:03][%mdl 576] Deflection. Beautiful play by Sam_ChessMood!   Weighted Error Value: White=0.82/Black=0.11 (very precise)} 0-1

[Event "CCT Airthings Masters Play-In 2023"]
[Site "Online"]
[Date "2023.02.03"]
[Round "4"]
[White "Aygehovit"]
[Black "Msb2"]
[Result "0-1"]
[ECO "C11"]
[WhiteElo "2456"]
[BlackElo "2587"]
[Annotator "TA"]
[PlyCount "62"]
[EventDate "2023.02.03"]
[EventType "swiss"]
[EventCountry "NET"]
[SourceTitle "playchess.com"]
[Source "ChessBase"]
[SourceQuality "1"]
[TimeControl "600+2"]

{[%evp 16,62,15,18,21,0,4,7,6,0,6,0,0,0,0,0,0,0,0,0,0,0,35,35,37,36,41,20,29,-62,-57,-62,-52,-44,-51,-43,-31,-104,-102,-100,-107,-93,-92,-149,-153,-141,-8,-5419,-5389]} 1. e4 {[%emt 0:00:04][%cal Be2e4,Be4e5][%mdl 32]} e6 {[%emt 0:00:03]} 2. d4 {[%emt 0:00:02]} d5 {[%emt 0:00:01]} 3. Nc3 {[%emt 0:00:00]} Nf6 {[%emt 0:00:01]} 4. e5 {[%emt 0:00:02]} Nfd7 {[%emt 0:00:01]} 5. f4 {[%emt 0:00:01]} c5 {[%emt 0:00:00]} 6. Nf3 {[%emt 0:00:01]} Nc6 {[%emt 0:00:00]} 7. Be3 {[%emt 0:00:00]} a6 {[%emt 0:00:01]} 8. Qd2 {[%emt 0:00:01]} b5 {[%emt 0:00:00]} 9. a3 {[%emt 0:00:04]} Qa5 $1 {[%emt 0:00:02][%mdl 4] is recently more successful than 9...Qb6. C11: French: Classical System: 4 e5 and 4 Bg5 dxe4.} 10. dxc5 {[%emt 0:00:08]} Bxc5 {[%emt 0:00:01]} 11. Bxc5 {[%emt 0:00:28]} Nxc5 {[%emt 0:00:00] The position is equal.} 12. Ne2 {[%emt 0:00:03] Strongly threatening Qxa5.} Qb6 {[%emt 0:00:14] [#] ...Ne4 is the strong threat.} 13. Ned4 $146 {[%emt 0:00:06]} ({Predecessor:} 13. Qe3 b4 14. c3 bxc3 15. b4 Na4 16. Qxb6 Nxb6 17. Nxc3 f6 18. exf6 gxf6 19. O-O-O {½-½ So,W (2770)-Nepomniachtchi,I (2792) FTX Crypto Cup KO rapid 2021 (2.13)}) 13... Ne4 {[%emt 0:00:08]} 14. Qe3 {[%emt 0:00:10]} b4 {[%emt 0:00:07]} 15. a4 {[%emt 0:01:04]} O-O {[%emt 0:00:06]} 16. Bd3 {[%emt 0:00:03]} a5 {[%emt 0:00:00]} 17. Bxe4 {[%emt 0:00:29]} dxe4 {[%emt 0:00:05]} 18. Qxe4 {[%emt 0:00:04]} Nxd4 {[%emt 0:00:27]} 19. Nxd4 {[%emt 0:00:46]} (19. Qxa8 $2 {is the wrong capture.} Nxc2+ 20. Ke2 Ba6+ $19) 19... Bb7 {[%emt 0:00:54]} 20. Qe3 {[%emt 0:00:06]} Rac8 {[%emt 0:01:36]} 21. O-O {[%emt 0:01:04]} Rfd8 {[%emt 0:00:21]} 22. c3 {[%emt 0:00:06]} (22. Rad1 $11) 22... bxc3 $15 {[%emt 0:00:12]} 23. bxc3 {[%emt 0:00:00]} Qb2 $36 {[%emt 0:00:02][%csl Gb7,LRc3,LRg2][%cal Rb2g2][%mdl 2048] Black is pushing.} 24. Qf2 {[%emt 0:00:28]} Qxc3 {[%emt 0:00:29]} 25. Nb5 {[%emt 0:00:03]} Qd3 {[%emt 0:00:04] And now ...Rc2 would win. White is weak on the light squares} 26. Rac1 {[%emt 0:00:44] Prevents Rc2.} (26. Ra3 $15 Qc2 27. Nd6) 26... h6 {[%emt 0:01:05] Black is more active.} 27. Nd6 {[%emt 0:00:22]} Rxc1 {[%emt 0:00:04]} 28. Rxc1 {[%emt 0:00:00]} Bd5 {[%emt 0:00:05]} 29. h3 {[%emt 0:00:36] [#]} (29. h4 $142) 29... Rb8 $1 $17 {[%emt 0:00:12]} 30. Kh2 {[%emt 0:00:06] [#]} (30. Qa7 {leads to mate.} Rb2) 30... Qa3 {[%emt 0:00:24]} ({Black should play} 30... Rb4 $1 $17 31. f5 exf5 32. Nxf5 Be6) 31. f5 $2 {[%emt 0:01:43][%mdl 8192]} Qxc1 {[%emt 0:00:21] Weighted Error Value: White=0.44/Black=0.13 (very precise)} 0-1

[Event "CCT Airthings Masters Play-In 2023"]
[Site "Online"]
[Date "2023.02.03"]
[Round "4"]
[White "TimofeevAr"]
[Black "daika91"]
[Result "0-1"]
[ECO "B50"]
[WhiteElo "2450"]
[BlackElo "2553"]
[Annotator "NA"]
[PlyCount "98"]
[EventDate "2023.02.03"]
[EventType "swiss"]
[EventCountry "NET"]
[SourceTitle "playchess.com"]
[Source "ChessBase"]
[SourceQuality "1"]
[TimeControl "600+2"]

1. e4 {[%emt 0:00:03]} c5 {[%emt 0:00:05]} 2. Nf3 {[%emt 0:00:10]} d6 {[%emt 0:00:01]} 3. Bc4 {[%emt 0:00:04]} e6 {[%emt 0:00:09]} 4. O-O {[%emt 0:00:11]} Nf6 {[%emt 0:00:02]} 5. d3 {[%emt 0:00:01]} a6 {[%emt 0:00:07]} 6. Bb3 {[%emt 0:00:04]} Be7 {[%emt 0:00:03]} 7. c3 {[%emt 0:00:07]} O-O {[%emt 0:00:02]} 8. Bf4 {[%emt 0:00:06]} b5 {[%emt 0:00:01]} 9. Nbd2 {[%emt 0:00:03]} Bb7 {[%emt 0:00:01]} 10. Re1 {[%emt 0:00:02]} d5 {[%emt 0:00:11]} 11. Bc2 {[%emt 0:00:24]} d4 {[%emt 0:00:04]} 12. cxd4 {[%emt 0:00:06]} cxd4 {[%emt 0:00:02]} 13. h3 {[%emt 0:00:24]} Nc6 {[%emt 0:00:01]} 14. Rc1 {[%emt 0:00:04]} Rc8 {[%emt 0:00:04]} 15. Bb1 {[%emt 0:00:04]} Re8 {[%emt 0:00:51]} 16. a3 {[%emt 0:00:05]} h6 {[%emt 0:00:10]} 17. Ba2 {[%emt 0:00:06]} Nd7 {[%emt 0:00:10]} 18. e5 {[%emt 0:00:21]} Nc5 {[%emt 0:00:02]} 19. Qe2 {[%emt 0:00:08]} b4 {[%emt 0:00:16]} 20. Nc4 {[%emt 0:00:08]} b3 {[%emt 0:00:07]} 21. Bb1 {[%emt 0:00:01]} a5 {[%emt 0:00:06]} 22. Nd6 {[%emt 0:00:12]} Bxd6 {[%emt 0:00:06]} 23. exd6 {[%emt 0:00:01]} Nd7 {[%emt 0:00:08]} 24. a4 {[%emt 0:00:14]} e5 {[%emt 0:00:02]} 25. Bg3 {[%emt 0:00:02]} Ba8 {[%emt 0:01:09]} 26. Nd2 {[%emt 0:00:50]} Rb8 {[%emt 0:00:02]} 27. Nc4 {[%emt 0:00:06]} Nb6 {[%emt 0:00:40]} 28. f4 {[%emt 0:01:00]} Nxc4 {[%emt 0:01:55]} 29. dxc4 {[%emt 0:00:03]} e4 {[%emt 0:00:13]} 30. c5 {[%emt 0:01:12]} Nb4 {[%emt 0:00:13]} 31. f5 {[%emt 0:00:19]} d3 {[%emt 0:00:14]} 32. Qf2 {[%emt 0:00:02]} Bc6 {[%emt 0:00:21]} 33. f6 {[%emt 0:00:28]} Qxf6 {[%emt 0:00:03]} 34. Qxf6 {[%emt 0:00:04]} gxf6 {[%emt 0:00:00]} 35. d7 {[%emt 0:00:01]} Red8 {[%emt 0:01:01]} 36. Bxb8 {[%emt 0:00:04]} Rxb8 {[%emt 0:00:01]} 37. Rc4 {[%emt 0:00:11]} Rd8 {[%emt 0:00:12]} 38. Rd4 {[%emt 0:00:14]} Nc2 {[%emt 0:00:07]} 39. Bxc2 {[%emt 0:00:22]} bxc2 {[%emt 0:00:00]} 40. Kf2 {[%emt 0:00:06]} Rxd7 {[%emt 0:00:17]} 41. Rxd7 {[%emt 0:00:03]} Bxd7 {[%emt 0:00:00]} 42. Ke3 {[%emt 0:00:02]} Bxa4 {[%emt 0:00:05]} 43. Kd2 {[%emt 0:00:02]} Bc6 {[%emt 0:00:02]} 44. g4 {[%emt 0:00:02]} Kg7 {[%emt 0:00:02]} 45. h4 {[%emt 0:00:42]} h5 {[%emt 0:00:07]} 46. Rg1 {[%emt 0:00:10]} hxg4 {[%emt 0:00:04]} 47. Rxg4+ {[%emt 0:00:01]} Kh6 {[%emt 0:00:01]} 48. Rg1 {[%emt 0:00:27]} f5 {[%emt 0:00:02]} 49. Ke3 {[%emt 0:00:01]} f4+ {[%emt 0:00:05]} 0-1

[Event "CCT Airthings Masters Play-In 2023"]
[Site "Online"]
[Date "2023.02.03"]
[Round "4"]
[White "SalgadoChess91"]
[Black "Infernal_XaM"]
[Result "1/2-1/2"]
[ECO "C02"]
[WhiteElo "2449"]
[BlackElo "2580"]
[Annotator "NA"]
[PlyCount "117"]
[EventDate "2023.02.03"]
[EventType "swiss"]
[EventCountry "NET"]
[SourceTitle "playchess.com"]
[Source "ChessBase"]
[SourceQuality "1"]
[TimeControl "600+2"]

1. e4 {[%emt 0:00:33]} e6 {[%emt 0:00:05]} 2. d4 {[%emt 0:00:04]} d5 {[%emt 0:00:01]} 3. e5 {[%emt 0:00:01]} c5 {[%emt 0:00:02]} 4. c3 {[%emt 0:00:01]} Nc6 {[%emt 0:00:02]} 5. Nf3 {[%emt 0:00:01]} Bd7 {[%emt 0:00:01]} 6. Be2 {[%emt 0:00:09]} f6 {[%emt 0:00:03]} 7. O-O {[%emt 0:00:04]} Qc7 {[%emt 0:00:06]} 8. Re1 {[%emt 0:00:21]} fxe5 {[%emt 0:00:05]} 9. Nxe5 {[%emt 0:00:01]} Nxe5 {[%emt 0:00:01]} 10. dxe5 {[%emt 0:00:01]} O-O-O {[%emt 0:00:15]} 11. Bf1 {[%emt 0:00:00]} Nh6 {[%emt 0:00:01]} 12. a4 {[%emt 0:00:03]} Nf7 {[%emt 0:00:07]} 13. Na3 {[%emt 0:00:08]} a6 {[%emt 0:00:03]} 14. b4 {[%emt 0:00:08]} c4 {[%emt 0:00:27]} 15. f4 {[%emt 0:01:28]} g5 {[%emt 0:00:05]} 16. Nc2 {[%emt 0:00:03]} gxf4 {[%emt 0:00:10]} 17. Bxf4 {[%emt 0:00:01]} Bh6 {[%emt 0:00:05]} 18. Bxh6 {[%emt 0:00:10]} Nxh6 {[%emt 0:00:00]} 19. Nd4 {[%emt 0:00:03]} Rdf8 {[%emt 0:00:03]} 20. g3 {[%emt 0:00:26]} Nf5 {[%emt 0:00:03]} 21. Ra2 {[%emt 0:00:29]} Qb6 {[%emt 0:00:08]} 22. a5 {[%emt 0:00:09]} Qa7 {[%emt 0:00:01]} 23. Rd2 {[%emt 0:00:07]} h5 {[%emt 0:00:02]} 24. Bh3 {[%emt 0:00:22]} Nxd4 {[%emt 0:00:04]} 25. Rxd4 {[%emt 0:00:00]} h4 {[%emt 0:00:01]} 26. Kg2 {[%emt 0:00:18]} hxg3 {[%emt 0:00:03]} 27. hxg3 {[%emt 0:00:00]} Qb8 {[%emt 0:00:08]} 28. Bg4 {[%emt 0:00:34]} b6 {[%emt 0:00:04]} 29. axb6 {[%emt 0:00:13]} Qxb6 {[%emt 0:00:02]} 30. Qa1 {[%emt 0:00:17]} Rhg8 {[%emt 0:00:06]} 31. Re2 {[%emt 0:00:15]} Kc7 {[%emt 0:00:09]} 32. Qa5 {[%emt 0:00:58]} Qxa5 {[%emt 0:00:15]} 33. bxa5 {[%emt 0:00:00]} Rg7 {[%emt 0:00:19]} 34. Bh3 {[%emt 0:00:13]} Rb8 {[%emt 0:00:19]} 35. Rf4 {[%emt 0:00:19]} Rb3 {[%emt 0:00:05]} 36. Re3 {[%emt 0:00:04]} Rb2+ {[%emt 0:00:11]} 37. Rf2 {[%emt 0:00:03]} Rb5 {[%emt 0:00:07]} 38. Rf6 {[%emt 0:00:05]} Rb3 {[%emt 0:00:19]} 39. Bxe6 {[%emt 0:01:09]} d4 {[%emt 0:02:28]} 40. Bxc4 {[%emt 0:00:06]} Bc6+ {[%emt 0:00:01]} 41. Rxc6+ {[%emt 0:01:01]} Kxc6 {[%emt 0:00:01]} 42. Bxb3 {[%emt 0:00:01]} dxe3 {[%emt 0:00:01]} 43. Bc4 {[%emt 0:00:07]} Kc5 {[%emt 0:00:21]} 44. Bxa6 {[%emt 0:00:06]} Rf7 {[%emt 0:00:03]} 45. e6 {[%emt 0:00:11]} Rf2+ {[%emt 0:00:02]} 46. Kg1 {[%emt 0:00:01]} Kd6 {[%emt 0:00:01]} 47. Bc4 {[%emt 0:00:03]} Rc2 {[%emt 0:00:15]} 48. a6 {[%emt 0:00:04]} Rxc3 {[%emt 0:00:03]} 49. a7 {[%emt 0:00:01]} Ra3 {[%emt 0:00:01]} 50. Kf1 {[%emt 0:00:01]} Rxa7 {[%emt 0:00:10]} 51. Ke2 {[%emt 0:00:01]} Ra4 {[%emt 0:00:02]} 52. Bd3 {[%emt 0:00:05]} Rg4 {[%emt 0:00:02]} 53. Kf3 {[%emt 0:00:06]} Rg7 {[%emt 0:00:09]} 54. g4 {[%emt 0:00:10]} Ke5 {[%emt 0:00:12]} 55. Kxe3 {[%emt 0:00:06]} Rxg4 {[%emt 0:00:04]} 56. e7 {[%emt 0:00:03]} Rg8 {[%emt 0:00:01]} 57. Bb5 {[%emt 0:00:02]} Kd6 {[%emt 0:00:01]} 58. e8=Q {[%emt 0:00:01]} Rxe8+ {[%emt 0:00:00]} 59. Bxe8 {[%emt 0:00:01]} 1/2-1/2